bitfinex-derivatives/quotes_BNBF0:USTF0_20250510
["timestamp","ask_amount","ask_price","bid_price","bid_amount"]
[1746911852315,0.28138511,654.41,653.65,0.30597414]
[1746911852615,0.28138511,654.4,653.65,0.30597414]
[1746911852911,0.28138511,654.39,653.65,0.30597414]
[1746911853415,0.28138511,654.38,653.65,0.30597414]
[1746911853815,0.28138511,654.37,653.65,0.30597414]
[1746911854116,0.28138511,654.36,653.65,0.30597414]
[1746911854417,0.28138511,654.35,653.65,0.30597414]
[1746911854716,0.54762538,654.35,653.65,0.30597414]
[1746911854917,0.28138511,654.34,653.65,0.30597414]
[1746911855217,0.28138511,654.33,653.65,0.30597414]
[1746911855712,0.28138511,654.32,653.65,0.30597414]
[1746911856111,0.28138511,654.31,653.65,0.30597414]
[1746911856415,0.26624027,654.35,653.65,0.30597414]
[1746911856616,1.98324059,654.62,653.65,0.30597414]
[1746911856817,0.2813632,654.34,653.65,0.30597414]
[1746911857718,0.26623416,654.33,653.65,0.30597414]
[1746911857918,0.54759736,654.33,653.65,0.30597414]
[1746911858220,0.2813632,654.32,653.65,0.30597414]
[1746911858418,0.2813632,654.31,653.65,0.30597414]
[1746911858718,0.2813632,654.3,653.65,0.30597414]
[1746911859018,0.2813632,654.29,653.65,0.30597414]
[1746911859318,0.2813632,654.28,653.65,0.30597414]
[1746911859720,0.2813632,654.27,653.65,0.30597414]
[1746911860020,0.2813632,654.26,653.65,0.30597414]
[1746911860421,0.2813632,654.25,653.65,0.30597414]
[1746911860821,0.54760857,654.24,653.65,0.30597414]
[1746911861221,0.2813632,654.23,653.65,0.30597414]
[1746911861522,0.2813632,654.22,653.65,0.30597414]
[1746911861823,0.2813632,654.21,653.65,0.30597414]
[1746911862320,0.2813632,654.2,653.65,0.30597414]
[1746911862518,0.2813632,654.23,653.65,0.30597414]
[1746911862825,0.26627185,654.19,653.65,0.30597414]
[1746911863524,0.2813632,654.18,653.65,0.30597414]
[1746911865327,0.26627185,654.19,653.65,0.30597414]
[1746911865526,1.98324059,654.51,653.65,0.30597414]
[1746911865721,0.28136255,654.18,653.65,0.30597414]
[1746911865924,0.5476069,654.18,653.65,0.30597414]
[1746911866124,0.28136255,654.18,653.65,0.30597414]
[1746911866827,0.26624537,654.17,653.65,0.30597414]
[1746911867426,0.28136255,654.16,653.65,0.30597414]
[1746911868928,0.28136255,654.56,653.65,0.30597414]
[1746911869229,0.28136255,654.55,653.65,0.30597414]
[1746911869530,0.28136255,654.54,653.65,0.30597414]
[1746911869731,0.54760079,654.54,653.65,0.30597414]
[1746911869924,0.28136255,654.53,653.65,0.30597414]
[1746911870126,0.28136255,654.52,653.65,0.30597414]
[1746911870430,0.28136255,654.51,653.65,0.30597414]
[1746911870630,0.28136255,654.5,653.65,0.30597414]
[1746911871031,0.28136255,654.49,653.65,0.30597414]
[1746911871330,0.28136255,654.48,653.65,0.30597414]
[1746911871727,0.26623315,654.47,653.65,0.30597414]
[1746911872327,0.5475957,654.47,653.65,0.30597414]
[1746911872733,0.28136255,654.46,653.65,0.30597414]
[1746911873030,0.28136255,654.45,653.65,0.30597414]
[1746911873433,0.28136255,654.44,653.65,0.30597414]
[1746911873732,0.28136255,654.43,653.65,0.30597414]
[1746911874234,0.28136255,654.42,653.65,0.30597414]
[1746911874533,0.28136255,654.41,653.65,0.30597414]
[1746911874834,0.28136255,654.4,653.65,0.30597414]
[1746911875334,0.28136255,654.39,653.65,0.30597414]
[1746911875737,0.28136255,654.38,653.65,0.30597414]
[1746911876040,0.28136255,654.37,653.65,0.30597414]
[1746911876435,0.28136255,654.36,653.65,0.30597414]
[1746911876735,0.28136255,654.35,653.65,0.30597414]
[1746911877130,0.28136255,654.34,653.65,0.30597414]
[1746911877736,0.5476069,654.33,653.65,0.30597414]
[1746911877935,0.28136255,654.32,653.65,0.30597414]
[1746911878536,0.28136255,654.31,653.65,0.30597414]
[1746911878937,0.28136255,654.3,653.65,0.30597414]
[1746911879337,0.28136255,654.32,653.65,0.30597414]
[1746911880038,0.28136255,654.31,653.65,0.30597414]
[1746911880438,0.28136255,654.32,653.65,0.30597414]
[1746911880833,0.2662525,654.31,653.65,0.30597414]
[1746911881634,0.28136255,654.3,653.65,0.30597414]
[1746911883235,0.2662525,654.31,653.65,0.30597414]
[1746911883634,0.28132937,654.3,653.65,0.30597414]
[1746911883837,0.54755233,654.3,653.65,0.30597414]
[1746911884038,0.26622296,654.3,653.65,0.30597414]
[1746911884440,0.28132937,654.29,653.65,0.30597414]
[1746911886741,0.26625148,654.28,653.65,0.30597414]
[1746911886938,0.28132937,654.27,653.65,0.30597414]
[1746911888243,0.28132937,654.27,653.65,1.14397414]
[1746911889746,0.85320978,654.56,653.65,1.14397414]
[1746911890446,0.85320978,654.82,653.65,1.14397414]
[1746911890742,0.26618325,654.55,653.65,1.14397414]
[1746911891142,0.28132937,654.54,653.65,1.14397414]
[1746911891548,0.28132937,654.53,653.65,1.14397414]
[1746911891943,0.28132937,654.52,653.65,1.14397414]
[1746911892349,0.28132937,654.51,653.65,1.14397414]
[1746911892649,0.28132937,654.5,653.65,1.14397414]
[1746911892849,0.54749532,654.5,653.65,1.14397414]
[1746911893048,0.28132937,654.49,653.65,1.14397414]
[1746911893349,0.28132937,654.48,653.65,1.14397414]
[1746911893651,0.26616595,654.5,653.65,1.14397414]
[1746911893652,0.28132937,654.47,653.65,1.14397414]
[1746911894050,0.28132937,654.49,653.65,1.14397414]
[1746911895850,0.26616086,654.48,653.65,1.14397414]
[1746911896051,0.54749023,654.48,653.65,1.14397414]
[1746911896348,0.28132937,654.47,653.65,1.14397414]
[1746911896651,0.28132937,654.46,653.65,1.14397414]
[1746911897045,0.28132937,654.45,653.65,1.14397414]
[1746911897248,0.28132937,654.44,653.65,1.14397414]
[1746911897752,0.28132937,654.43,653.65,1.14397414]
[1746911898048,0.28132937,654.47,653.65,1.14397414]
[1746911898452,0.28132937,654.46,653.65,1.14397414]
[1746911898950,0.28132937,654.45,653.65,1.14397414]
[1746911899150,0.28132937,654.44,653.65,1.14397414]
[1746911899552,0.26620972,654.46,653.65,1.14397414]
[1746911899952,0.28129239,654.45,653.65,1.14397414]
[1746911900253,0.28129239,654.44,653.65,1.14397414]
[1746911900547,0.28129239,654.43,653.65,1.14397414]
[1746911900852,0.28129239,654.42,653.65,1.14397414]
[1746911901252,0.28129239,654.41,653.65,1.14397414]
[1746911901448,0.28129239,654.4,653.65,1.14397414]
[1746911901749,0.26621176,654.39,653.65,1.14397414]
[1746911901954,0.54750415,654.39,653.65,1.14397414]
[1746911902254,0.28129239,654.38,653.65,1.14397414]
[1746911902554,0.28129239,654.37,653.65,1.14397414]
[1746911903156,0.28129239,654.36,653.65,1.14397414]
[1746911903456,0.28129239,654.35,653.65,1.14397414]
[1746911903856,0.28129239,654.34,653.65,1.14397414]
[1746911904253,0.28129239,654.33,653.65,1.14397414]
[1746911904656,0.28129239,654.38,653.65,1.14397414]
[1746911905056,0.28129239,654.37,653.65,1.14397414]
[1746911905356,0.28129239,654.36,653.65,1.14397414]
[1746911905856,0.26619547,654.35,653.65,1.14397414]
[1746911906456,0.28129239,654.34,653.65,1.14397414]
[1746911906958,0.28129239,654.33,653.65,1.14397414]
[1746911907358,0.28129239,654.32,653.65,1.14397414]
[1746911907758,0.54752961,654.31,653.65,1.14397414]
[1746911908155,0.28129239,654.3,653.65,1.14397414]
[1746911910658,0.28129239,654.72,653.65,1.14397414]
[1746911910955,0.26623315,654.29,653.65,1.14397414]
[1746911911155,0.28129239,654.71,653.65,1.14397414]
[1746911911357,0.28129239,654.71,653.65,0.74497414]
[1746911911758,0.26619038,654.7,653.65,0.74497414]
[1746911911962,0.54748277,654.7,653.65,0.74497414]
[1746911912365,0.28129239,654.69,653.65,0.74497414]
[1746911912963,0.28129239,654.68,653.65,0.74497414]
[1746911913359,0.28129239,654.67,653.65,0.74497414]
[1746911913761,0.54748582,654.66,653.65,0.74497414]
[1746911914061,0.28129239,654.65,653.65,0.74497414]
[1746911914364,0.28129239,654.64,653.65,0.74497414]
[1746911914858,0.28129239,654.63,653.65,0.74497414]
[1746911915166,0.28129239,654.62,653.65,0.74497414]
[1746911915465,0.28129239,654.61,653.65,0.74497414]
[1746911915766,0.28129239,654.6,653.65,0.74497414]
[1746911916166,0.28129239,654.59,653.65,0.74497414]
[1746911916465,0.28129239,654.58,653.65,0.74497414]
[1746911916966,0.28129239,654.57,653.65,0.74497414]
[1746911917268,0.28129239,654.56,653.65,0.74497414]
[1746911917568,0.28129239,654.55,653.65,0.74497414]
[1746911917868,0.54748277,654.55,653.65,0.74497414]
[1746911918061,0.28129239,654.54,653.65,0.74497414]
[1746911918461,0.28129239,654.53,653.65,0.74497414]
[1746911918762,0.28129239,654.52,653.65,0.74497414]
[1746911919463,0.28129239,654.51,653.65,0.74497414]
[1746911919872,0.28129239,654.5,653.65,0.74497414]
[1746911920373,0.28129239,654.49,653.65,0.74497414]
[1746911920675,0.28129239,654.5,653.65,0.74497414]
[1746911920973,0.28129239,654.49,653.65,0.74497414]
[1746911921368,0.28129239,654.48,653.65,0.74497414]
[1746911921774,0.28129239,654.47,653.65,0.74497414]
[1746911922073,0.28129239,654.5,653.65,0.74497414]
[1746911922374,0.26618427,654.51,653.65,0.74497414]
[1746911922574,1.98324059,654.9,653.65,0.74497414]
[1746911922769,0.54735609,654.5,653.65,0.74497414]
[1746911923074,0.28122067,654.5,653.65,0.74497414]
[1746911923274,0.28122067,654.49,653.65,0.74497414]
[1746911923769,0.26612626,654.48,653.65,0.74497414]
[1746911924175,0.28122067,654.47,653.65,0.74497414]
[1746911926078,0.26615679,654.46,653.65,0.74497414]
[1746911926578,0.28122067,654.45,653.65,0.74497414]
[1746911928781,0.26614254,654.44,653.65,0.74497414]
[1746911928982,0.28122067,654.43,653.65,0.74497414]
[1746911931983,0.28122067,655.1,653.65,0.74497414]
[1746911932482,0.28122067,655.09,653.65,0.74497414]
[1746911932783,0.54724928,655.09,653.65,0.74497414]
[1746911932983,0.28122067,655.08,653.65,0.74497414]
[1746911933384,0.28122067,655.07,653.65,0.74497414]
[1746911933684,0.28122067,655.06,653.65,0.74497414]
[1746911934185,0.28122067,655.05,653.65,0.74497414]
[1746911934585,0.28122067,655.04,653.65,0.74497414]
[1746911934986,0.28122067,655.03,653.65,0.74497414]
[1746911935286,0.28122067,655.02,653.65,0.74497414]
[1746911935691,0.28122067,655.01,653.65,0.74497414]
[1746911936089,0.28122067,655.0,653.65,0.74497414]
[1746911936287,0.28122067,654.99,653.65,0.74497414]
[1746911936688,0.28122067,654.98,653.65,0.74497414]
[1746911936988,0.28122067,655.08,653.65,0.74497414]
[1746911937290,0.28122067,655.07,653.65,0.74497414]
[1746911937691,0.28122067,655.08,653.65,0.74497414]
[1746911937990,0.28122067,655.07,653.65,0.74497414]
[1746911938290,0.28122067,655.06,653.65,0.74497414]
[1746911938591,0.28122067,655.05,653.65,0.74497414]
[1746911938892,0.26602861,655.09,653.65,0.74497414]
[1746911938893,0.28122067,655.04,653.65,0.74497414]
[1746911939290,0.28122067,655.03,653.65,0.74497414]
[1746911939490,0.28122067,655.03,653.65,1.37397414]
[1746911939687,0.28122067,655.08,653.65,1.37397414]
[1746911939991,0.28122067,655.07,653.65,1.37397414]
[1746911940292,0.28122067,655.08,653.65,1.37397414]
[1746911942295,0.28122067,655.07,653.65,1.37397414]
[1746911942595,0.26602861,655.09,653.65,1.37397414]
[1746911943396,0.28105938,655.08,653.65,1.37397414]
[1746911944091,0.28105938,655.07,653.65,1.37397414]
[1746911944396,0.28105938,655.06,653.65,1.37397414]
[1746911944797,0.54700768,655.05,653.65,1.37397414]
[1746911945197,0.28105938,655.04,653.65,1.37397414]
[1746911945499,0.28105938,655.03,653.65,1.37397414]
[1746911945898,0.28105938,655.02,653.65,1.37397414]
[1746911946298,0.28105938,655.01,653.65,1.37397414]
[1746911946800,0.54710527,655.0,653.65,1.37397414]
[1746911947400,0.28105938,654.99,653.65,1.37397414]
[1746911948098,0.28105938,654.98,653.65,1.37397414]
[1746911948501,0.28105938,654.97,653.65,1.37397414]
[1746911948800,0.26604589,655.0,653.65,1.37397414]
[1746911948801,0.28105938,654.96,653.65,1.37397414]
[1746911949101,0.28105938,654.95,653.65,1.37397414]
[1746911949501,0.28105938,654.94,653.65,1.37397414]
[1746911949897,0.28105938,654.93,653.65,1.37397414]
[1746911950704,0.28105938,654.92,653.65,1.37397414]
[1746911951102,0.28105938,654.91,653.65,1.37397414]
[1746911951402,0.28105938,654.9,653.65,1.37397414]
[1746911952103,0.28105938,654.89,653.65,1.37397414]
[1746911952904,0.2660581,654.88,653.65,1.37397414]
[1746911953203,0.54711748,654.88,653.65,1.37397414]
[1746911953503,0.28105938,654.87,653.65,1.37397414]
[1746911953898,0.28105938,654.86,653.65,1.37397414]
[1746911954308,0.28105938,654.85,653.65,1.37397414]
[1746911954604,0.2660581,654.88,653.65,1.37397414]
[1746911954605,0.28105938,654.84,653.65,1.37397414]
[1746911954900,0.28105938,654.83,653.65,1.37397414]
[1746911955205,0.28105938,654.87,653.65,1.37397414]
[1746911955705,0.28105938,654.86,653.65,1.37397414]
[1746911956005,0.28105938,654.85,653.65,1.37397414]
[1746911958908,0.26606115,654.84,653.65,1.37397414]
[1746911959808,0.28105938,654.83,653.65,1.37397414]
[1746911961808,0.26606318,654.82,653.65,1.37397414]
[1746911962109,0.28105938,654.81,653.65,1.37397414]
[1746911964415,0.26606318,654.82,653.65,1.37397414]
[1746911964614,1.98324059,655.32,653.65,1.37397414]
[1746911964814,0.5470594,654.81,653.65,1.37397414]
[1746911965111,0.28105316,654.81,653.65,1.37397414]
[1746911965415,0.28105316,654.8,653.65,1.37397414]
[1746911965817,0.28105316,655.3,653.65,1.37397414]
[1746911966114,0.26600725,654.79,653.65,1.37397414]
[1746911966314,0.28105316,655.29,653.65,1.37397414]
[1746911966516,0.28105316,654.78,653.65,1.37397414]
[1746911966915,0.28105316,655.43,653.65,1.37397414]
[1746911967314,0.28105316,655.42,653.65,1.37397414]
[1746911967610,0.28105316,655.41,653.65,1.37397414]
[1746911968010,0.28105316,655.4,653.65,1.37397414]
[1746911968411,0.26599404,655.42,653.65,1.37397414]
[1746911968412,0.28105316,655.39,653.65,1.37397414]
[1746911968611,0.28105316,655.38,653.65,1.37397414]
[1746911969019,0.28105316,655.37,653.65,1.37397414]
[1746911969416,0.28105316,655.36,653.65,1.37397414]
[1746911970015,0.28105316,655.35,653.65,1.37397414]
[1746911970410,0.28105316,655.34,653.65,1.37397414]
[1746911970815,0.54704923,655.33,653.65,1.37397414]
[1746911971218,0.28105316,655.32,653.65,1.37397414]
[1746911971411,0.28105316,655.31,653.65,1.37397414]
[1746911971819,0.28105316,655.3,653.65,1.37397414]
[1746911972212,0.28105316,655.29,653.65,1.37397414]
[1746911972517,0.28105316,655.28,653.65,1.37397414]
[1746911973016,0.28105316,655.27,653.65,1.37397414]
[1746911973517,0.28105316,655.26,653.65,1.37397414]
[1746911973817,0.54705838,655.26,653.65,1.37397414]
[1746911974017,0.28105316,655.25,653.65,1.37397414]
[1746911974423,0.28105316,655.24,653.65,1.37397414]
[1746911974721,0.28105316,655.23,653.65,1.37397414]
[1746911975017,0.28105316,655.22,653.65,1.37397414]
[1746911975414,0.28105316,655.21,653.65,1.37397414]
[1746911975919,0.28105316,655.2,653.65,1.37397414]
[1746911976219,0.28105316,655.19,653.65,1.37397414]
[1746911976619,0.28105316,655.18,653.65,1.37397414]
[1746911976921,0.5470655,655.18,653.65,1.37397414]
[1746911977114,0.28105316,655.17,653.65,1.37397414]
[1746911977520,0.28105316,655.16,653.65,1.37397414]
[1746911977815,0.28105316,655.15,653.65,1.37397414]
[1746911978418,0.28105316,655.14,653.65,1.37397414]
[1746911978721,0.28105316,655.13,653.65,1.37397414]
[1746911979122,0.26601234,655.18,653.65,1.37397414]
[1746911979123,0.28105316,655.12,653.65,1.37397414]
[1746911979523,0.28105316,655.11,653.65,1.37397414]
[1746911979822,0.28105316,655.1,653.65,1.37397414]
[1746911980118,0.28105316,655.09,653.65,1.37397414]
[1746911980416,0.28105316,655.08,653.65,1.37397414]
[1746911980814,0.28105316,655.07,653.65,1.37397414]
[1746911981222,0.28105316,655.06,653.65,1.37397414]
[1746911981622,0.28105316,655.05,653.65,1.37397414]
[1746911981818,0.28105316,655.04,653.65,1.37397414]
[1746911982223,0.28105316,655.03,653.65,1.37397414]
[1746911982623,0.28105316,655.02,653.65,1.37397414]
[1746911983217,0.28105316,655.01,653.65,1.37397414]
[1746911983924,0.28105316,655.0,653.65,1.37397414]
[1746911984423,0.28105316,654.99,653.65,1.37397414]
[1746911984923,0.28105316,654.98,653.65,1.37397414]
[1746911985325,0.28105316,654.97,653.65,1.37397414]
[1746911985928,0.54710312,654.96,653.65,1.37397414]
[1746911986230,0.28105316,654.95,653.65,1.37397414]
[1746911986724,0.28105316,654.94,653.65,1.37397414]
[1746911987126,0.28105316,654.93,653.65,1.37397414]
[1746911987433,0.28105316,654.92,653.65,1.37397414]
[1746911987726,0.28105316,654.91,653.65,1.37397414]
[1746911988030,0.28105316,654.9,653.65,1.37397414]
[1746911988428,0.28105316,654.89,653.65,1.37397414]
[1746911988829,0.28105316,654.88,653.65,1.37397414]
[1746911989027,0.28105316,654.87,653.65,1.37397414]
[1746911989333,0.28105316,654.86,653.65,1.37397414]
[1746911989634,0.28105316,654.85,653.65,1.37397414]
[1746911989934,0.28105316,654.84,653.65,1.37397414]
[1746911990433,0.28105316,654.83,653.65,1.37397414]
[1746911990629,0.28105316,654.82,653.65,1.37397414]
[1746911991034,0.28105316,654.87,653.65,1.37397414]
[1746911991735,0.28105316,654.86,653.65,1.37397414]
[1746911991937,0.28105316,654.85,653.65,1.37397414]
[1746911992331,0.28105316,654.84,653.65,1.37397414]
[1746911992831,0.28105316,654.83,653.65,1.37397414]
[1746911993836,0.28105316,654.85,653.65,1.37397414]
[1746911994236,0.28105316,654.84,653.65,1.37397414]
[1746911994835,0.28105316,654.83,653.65,1.37397414]
[1746911995037,0.54710109,654.83,653.65,1.37397414]
[1746911995336,0.28105316,654.82,653.65,1.37397414]
[1746911996237,0.28105316,654.81,653.65,1.37397414]
[1746911996436,0.28105316,654.82,653.65,1.37397414]
[1746911998038,0.28105316,655.18,653.65,1.37397414]
[1746911998538,0.28105316,655.17,653.65,1.37397414]
[1746911998737,0.28105316,655.16,653.65,1.37397414]
[1746911999434,0.28105316,655.15,653.65,1.37397414]
[1746911999738,0.28105316,655.14,653.65,1.37397414]
[1746912000044,0.26603064,655.17,653.65,1.37397414]
[1746912000345,0.28109143,655.16,653.65,1.37397414]
[1746912000841,0.28109143,655.15,653.65,1.37397414]
[1746912001044,0.54712105,655.15,653.65,1.37397414]
[1746912001245,0.28109143,655.14,653.65,1.37397414]
[1746912001538,0.28109143,655.13,653.65,1.37397414]
[1746912001945,0.54712309,655.12,653.65,1.37397414]
[1746912002245,0.28109143,655.11,653.65,1.37397414]
[1746912002545,0.28109143,655.1,653.65,1.37397414]
[1746912002842,0.28109143,655.09,653.65,1.37397414]
[1746912003146,0.28109143,655.08,653.65,1.37397414]
[1746912004141,0.28109143,655.07,653.65,1.37397414]
[1746912004342,0.28109143,655.06,653.65,1.37397414]
[1746912004749,0.28109143,655.05,653.65,1.37397414]
[1746912005149,0.28109143,655.04,653.65,1.37397414]
[1746912005448,0.28109143,655.03,653.65,1.37397414]
[1746912005844,0.28109143,655.02,653.65,1.37397414]
[1746912006344,0.28109143,655.01,653.65,1.37397414]
[1746912006748,0.28109143,655.0,653.65,1.37397414]
[1746912006945,0.54712614,655.0,653.65,1.37397414]
[1746912007150,0.28109143,654.99,653.65,1.37397414]
[1746912007549,0.28109143,654.98,653.65,1.37397414]
[1746912007951,0.28109143,654.97,653.65,1.37397414]
[1746912008349,0.28109143,654.96,653.65,1.37397414]
[1746912008650,0.28109143,654.95,653.65,1.37397414]
[1746912009051,0.28109143,654.94,653.65,1.37397414]
[1746912009446,0.28109143,654.93,653.65,1.37397414]
[1746912009851,0.28109143,654.92,653.65,1.37397414]
[1746912010047,0.28109143,654.91,653.65,1.37397414]
[1746912010446,0.28109143,654.9,653.65,1.37397414]
[1746912010853,0.28109143,654.89,653.65,1.37397414]
[1746912011252,0.28109143,654.88,653.65,1.37397414]
[1746912011553,0.28109143,654.91,653.65,1.37397414]
[1746912011952,0.28109143,654.9,653.65,1.37397414]
[1746912012251,0.28109143,654.89,653.65,1.37397414]
[1746912012853,0.54714648,654.88,653.65,1.37397414]
[1746912013550,0.28109143,654.87,653.65,1.37397414]
[1746912015952,0.26605911,654.86,653.65,1.37397414]
[1746912016457,0.28109143,654.85,653.65,1.37397414]
[1746912018857,0.26606115,654.84,653.65,1.37397414]
[1746912019457,0.28109143,654.83,653.65,1.37397414]
[1746912022059,0.26603064,654.82,653.65,1.37397414]
[1746912022258,0.28109143,654.81,653.65,1.37397414]
[1746912024956,0.26606522,654.8,653.65,1.37397414]
[1746912025157,0.28109143,654.79,653.65,1.37397414]
[1746912027965,0.26606725,654.78,653.65,1.37397414]
[1746912028165,0.28109143,654.77,653.65,1.37397414]
[1746912029763,0.26606725,654.78,653.65,1.37397414]
[1746912030167,0.28108373,654.77,653.65,1.37397414]
[1746912030863,0.26606929,654.76,653.65,1.37397414]
[1746912031467,0.28108373,654.75,653.65,1.37397414]
[1746912033968,0.26607132,654.74,653.65,1.37397414]
[1746912034169,0.28108373,654.73,653.65,1.37397414]
[1746912036774,0.57263059,655.17,653.65,1.37397414]
[1746912036775,0.28108373,655.16,653.65,1.37397414]
[1746912036970,0.26607335,654.72,653.65,1.37397414]
[1746912037170,0.28108373,655.16,653.65,1.37397414]
[1746912037572,0.28108373,654.71,653.65,1.37397414]
[1746912037774,0.85371432,655.16,653.65,1.37397414]
[1746912037976,0.26602962,655.15,653.65,1.37397414]
[1746912038473,0.28108373,655.14,653.65,1.37397414]
[1746912038975,0.28108373,655.13,653.65,1.37397414]
[1746912039374,0.28108373,655.12,653.65,1.37397414]
[1746912039871,0.28108373,655.11,653.65,1.37397414]
[1746912040179,0.28108373,655.1,653.65,1.37397414]
[1746912040474,1.98324059,655.17,653.65,1.37397414]
[1746912040878,1.11973618,655.16,653.65,1.37397414]
[1746912041179,0.26602962,655.16,653.65,1.37397414]
[1746912041584,0.28108123,655.15,653.65,1.37397414]
[1746912042080,0.28108123,655.14,653.65,1.37397414]
[1746912042479,0.28108123,655.13,653.65,1.37397414]
[1746912042880,0.54711187,655.12,653.65,1.37397414]
[1746912043180,0.28108123,655.11,653.65,1.37397414]
[1746912043581,0.28108123,655.1,653.65,1.37397414]
[1746912043881,0.26603064,655.12,653.65,1.37397414]
[1746912044482,0.2810824,655.11,653.65,1.37397414]
[1746912044776,0.2810824,655.1,653.65,1.37397414]
[1746912044981,0.2810824,655.09,653.65,1.37397414]
[1746912045482,0.2810824,655.08,653.65,1.37397414]
[1746912045881,0.2810824,655.07,653.65,1.37397414]
[1746912046184,0.2810824,655.06,653.65,1.37397414]
[1746912046983,0.2810824,655.05,653.65,1.37397414]
[1746912047383,0.2810824,655.04,653.65,1.37397414]
[1746912047884,0.2810824,655.03,653.65,1.37397414]
[1746912048184,0.2810824,655.02,653.65,1.37397414]
[1746912048586,0.2810824,655.01,653.65,1.37397414]
[1746912048884,0.54711914,655.01,653.65,1.37397414]
[1746912049079,0.2810824,655.0,653.65,1.37397414]
[1746912049283,0.2810824,654.99,653.65,1.37397414]
[1746912049583,0.2810824,654.98,653.65,1.37397414]
[1746912049983,0.2810824,654.97,653.65,1.37397414]
[1746912050384,0.2810824,654.96,653.65,1.37397414]
[1746912050886,0.26603674,655.01,653.65,1.37397414]
[1746912050887,0.2810824,654.95,653.65,1.37397414]
[1746912051186,0.26603674,655.01,653.65,1.37397414]
[1746912051587,1.98324059,655.18,653.65,1.37397414]
[1746912051882,0.28106682,655.0,653.65,1.37397414]
[1746912052588,0.28106682,655.16,653.65,1.37397414]
[1746912052889,0.26600929,654.99,653.65,1.37397414]
[1746912053189,0.28106682,654.98,653.65,1.37397414]
[1746912053389,0.54707814,654.98,653.65,1.37397414]
[1746912053589,0.26601132,654.98,653.65,1.37397414]
[1746912053985,0.28106682,654.97,653.65,1.37397414]
[1746912054888,0.26602861,654.96,653.65,1.37397414]
[1746912055189,0.28106682,654.95,653.65,1.37397414]
[1746912057891,0.28106682,655.37,653.65,1.37397414]
[1746912058093,0.26598794,654.94,653.65,1.37397414]
[1746912058293,0.28106682,655.36,653.65,1.37397414]
[1746912058488,0.28106682,655.35,653.65,1.37397414]
[1746912058893,0.28106682,655.34,653.65,1.37397414]
[1746912059093,0.54705069,655.34,653.65,1.37397414]
[1746912059293,0.28106682,655.33,653.65,1.37397414]
[1746912059888,0.26598387,655.34,653.65,1.37397414]
[1746912060399,0.28103516,655.33,653.65,1.37397414]
[1746912060796,0.28103516,655.32,653.65,1.37397414]
[1746912060997,0.54702716,655.32,653.65,1.37397414]
[1746912061299,0.28103516,655.31,653.65,1.37397414]
[1746912061699,0.28103516,655.3,653.65,1.37397414]
[1746912062099,0.28103516,655.29,653.65,1.37397414]
[1746912062400,0.28103516,655.28,653.65,1.37397414]
[1746912062900,0.28103516,655.27,653.65,1.37397414]
[1746912063401,0.28103516,655.26,653.65,1.37397414]
[1746912063901,0.26599404,655.25,653.65,1.37397414]
[1746912064102,0.5470292,655.25,653.65,1.37397414]
[1746912064296,0.28103516,655.24,653.65,1.37397414]
[1746912064699,0.28103516,655.23,653.65,1.37397414]
[1746912065104,0.28103516,655.22,653.65,1.37397414]
[1746912065401,0.28103516,655.21,653.65,1.37397414]
[1746912065803,0.28103516,655.2,653.65,1.37397414]
[1746912066101,0.28103516,655.19,653.65,1.37397414]
[1746912066401,0.28103516,655.18,653.65,1.37397414]
[1746912066902,0.54703428,655.17,653.65,1.37397414]
[1746912067301,0.28103516,655.16,653.65,1.37397414]
[1746912067596,0.28103516,655.15,653.65,1.37397414]
[1746912068002,0.28103516,655.14,653.65,1.37397414]
[1746912068501,0.26599912,655.17,653.65,1.37397414]
[1746912068502,0.28103516,655.13,653.65,1.37397414]
[1746912069202,0.28103516,655.12,653.65,1.37397414]
[1746912069602,0.28103516,655.11,653.65,1.37397414]
[1746912069899,0.54705055,655.11,653.65,1.37397414]
[1746912070098,0.28103516,655.1,653.65,1.37397414]
[1746912070404,0.28103516,655.09,653.65,1.37397414]
[1746912070705,0.28103516,655.08,653.65,1.37397414]
[1746912071203,0.28103516,655.07,653.65,1.37397414]
[1746912071499,0.28103516,655.06,653.65,1.37397414]
[1746912071900,0.28103516,655.05,653.65,1.37397414]
[1746912072205,0.28103516,655.04,653.65,1.37397414]
[1746912072904,0.54706275,655.03,653.65,1.37397414]
[1746912073406,0.28103516,655.02,653.65,1.37397414]
[1746912073805,0.28103516,655.01,653.65,1.37397414]
[1746912074006,0.28103516,655.02,653.65,1.37397414]
[1746912074403,0.28103516,655.01,653.65,1.37397414]
[1746912074807,0.28103516,655.02,653.65,1.37397414]
[1746912075107,0.28103516,655.01,653.65,1.37397414]
[1746912075508,0.28103516,655.02,653.65,1.37397414]
[1746912076008,0.26603572,655.01,653.65,1.37397414]
[1746912076709,0.28103516,655.0,653.65,1.37397414]
[1746912079011,0.26599404,654.99,653.65,1.37397414]
[1746912079612,0.28103516,654.98,653.65,1.37397414]
[1746912082014,0.26603979,654.97,653.65,1.37397414]
[1746912082516,0.28103516,654.96,653.65,1.37397414]
[1746912085113,0.26592188,654.95,653.65,1.37397414]
[1746912085914,0.28103516,654.94,653.65,1.37397414]
[1746912087919,0.26604386,654.93,653.65,1.37397414]
[1746912088114,0.28103516,654.92,653.65,1.37397414]
[1746912089715,0.26604386,654.93,653.65,1.37397414]
[1746912090122,0.28103804,654.92,653.65,1.37397414]
[1746912091024,0.26597371,654.91,653.65,1.37397414]